[Event "Titled Tuesday Blitz November 01 Late 2022"]
[White "Mesa Cruz, Juan Carlos"]
[Black "Heinemann, Josefine"]
[WhiteFideId "6423400"]
[BlackFideId "12900460"]
[WhiteElo "2059"]
[BlackElo "2300"]
[Result "0-1"]
[Round "05"]
[TimeControl "180+1"]
[Date "2022.11.02"]
[WhiteClock "0:00:06"]
[BlackClock "0:02:47"]

1. e4 {[%clk 0:00:01]}  c5 {[%clk 0:02:54]} 2. Nf3 {[%clk 0:00:02]}  d6 {[%clk 0:02:54]} 3. Nc3 {[%clk 0:00:02]}  a6 {[%clk 0:02:53]} 4. d4 {[%clk 0:00:03]}  cxd4 {[%clk 0:02:52]} 5. Nxd4 {[%clk 0:00:04]}  Nf6 {[%clk 0:02:52]} 6. Be2 {[%clk 0:00:05]}  e5 {[%clk 0:02:52]} 7. Be3 {[%clk 0:00:06]}  exd4 {[%clk 0:02:51]} 8. Bxd4 {[%clk 0:00:06]}  Be7 {[%clk 0:02:51]} 9. O-O {[%clk 0:00:06]}  O-O {[%clk 0:02:51]} 10. f3 {[%clk 0:00:07]}  Be6 {[%clk 0:02:52]} 11. Be3 {[%clk 0:00:07]}  Nc6 {[%clk 0:02:52]} 12. Qd2 {[%clk 0:00:08]}  d5 {[%clk 0:02:52]} 13. exd5 {[%clk 0:00:06]}  Nxd5 {[%clk 0:02:53]} 14. Nxd5 {[%clk 0:00:06]}  Qxd5 {[%clk 0:02:53]} 15. Qe1 {[%clk 0:00:06]}  Bc5 {[%clk 0:02:47]} 0-1


[Site "https://www.chess.com"]

[Event "Titled Tuesday Blitz November 01 Late 2022"]
[White "Munoz Sanchez, Miguel"]
[Black "Saucey, Michel"]
[WhiteFideId "3600734"]
[BlackFideId "601845"]
[WhiteElo "2166"]
[BlackElo "2253"]
[Result "1-0"]
[Round "05"]
[TimeControl "180+1"]
[Date "2022.11.02"]
[WhiteClock "0:00:08"]
[BlackClock "0:00:02"]

1. d4 {[%clk 0:03:00]}  d5 {[%clk 0:02:48]} 2. Nf3 {[%clk 0:03:00]}  Nf6 {[%clk 0:02:46]} 3. g3 {[%clk 0:03:00]}  e6 {[%clk 0:02:44]} 4. Bg2 {[%clk 0:03:00]}  b5 {[%clk 0:02:43]} 5. a4 {[%clk 0:02:59]}  b4 {[%clk 0:02:43]} 6. O-O {[%clk 0:02:59]}  Be7 {[%clk 0:02:42]} 7. c4 {[%clk 0:02:55]}  bxc3 {[%clk 0:02:36]} 8. Nxc3 {[%clk 0:02:51]}  a5 {[%clk 0:02:35]} 9. Bf4 {[%clk 0:02:49]}  c6 {[%clk 0:02:33]} 10. Rc1 {[%clk 0:02:47]}  O-O {[%clk 0:02:32]} 11. Ne5 {[%clk 0:02:44]}  Nfd7 {[%clk 0:02:30]} 12. e4 {[%clk 0:02:40]}  Nxe5 {[%clk 0:02:28]} 13. Bxe5 {[%clk 0:02:36]}  Ba6 {[%clk 0:02:27]} 14. Re1 {[%clk 0:02:35]}  Nd7 {[%clk 0:02:26]} 15. Bf4 {[%clk 0:02:33]}  Bb4 {[%clk 0:02:18]} 16. e5 {[%clk 0:02:28]}  c5 {[%clk 0:02:16]} 17. Be3 {[%clk 0:02:19]}  c4 {[%clk 0:02:10]} 18. Qg4 {[%clk 0:02:16]}  Kh8 {[%clk 0:02:08]} 19. h4 {[%clk 0:02:15]}  Nb6 {[%clk 0:01:33]} 20. h5 {[%clk 0:02:09]}  h6 {[%clk 0:01:32]} 21. Rf1 {[%clk 0:01:52]}  Be7 {[%clk 0:01:20]} 22. f4 {[%clk 0:01:50]}  Bc8 {[%clk 0:01:11]} 23. Qf3 {[%clk 0:01:43]}  Qd7 {[%clk 0:01:08]} 24. Ra1 {[%clk 0:01:39]}  f5 {[%clk 0:01:02]} 25. g4 {[%clk 0:01:35]}  fxg4 {[%clk 0:00:58]} 26. Qxg4 {[%clk 0:01:34]}  Qe8 {[%clk 0:00:56]} 27. Bh3 {[%clk 0:01:30]}  Qf7 {[%clk 0:00:44]} 28. Kh2 {[%clk 0:01:28]}  Qf5 {[%clk 0:00:38]} 29. Qxf5 {[%clk 0:01:26]}  exf5 {[%clk 0:00:37]} 30. Rg1 {[%clk 0:01:22]}  Bb4 {[%clk 0:00:26]} 31. Nb5 {[%clk 0:01:20]}  Bd7 {[%clk 0:00:21]} 32. Rg6 {[%clk 0:01:13]}  Nxa4 {[%clk 0:00:19]} 33. Nc7 {[%clk 0:01:11]}  Rac8 {[%clk 0:00:18]} 34. Nxd5 {[%clk 0:01:09]}  Be8 {[%clk 0:00:16]} 35. Ra6 {[%clk 0:00:58]}  Nxb2 {[%clk 0:00:15]} 36. Bc1 {[%clk 0:00:32]}  Nd3 {[%clk 0:00:14]} 37. Ba3 {[%clk 0:00:30]}  Bxh5 {[%clk 0:00:12]} 38. Ne7 {[%clk 0:00:26]}  Rce8 {[%clk 0:00:10]} 39. Nxf5 {[%clk 0:00:25]}  Nxf4 {[%clk 0:00:07]} 40. Nxh6 {[%clk 0:00:22]}  gxh6 {[%clk 0:00:06]} 41. Rxh6+ {[%clk 0:00:20]}  Kg7 {[%clk 0:00:07]} 42. Rb6 {[%clk 0:00:15]}  Rh8 {[%clk 0:00:06]} 43. Bxb4 {[%clk 0:00:13]}  axb4 {[%clk 0:00:02]} 44. Ra7+ {[%clk 0:00:12]}  Bf7 {[%clk 0:00:02]} 45. e6 {[%clk 0:00:09]}  Rxh3+ {[%clk 0:00:02]} 46. Kg1 {[%clk 0:00:10]}  Rxe6 {[%clk 0:00:02]} 47. Rxb4 {[%clk 0:00:08]} 1-0


[Site "https://www.chess.com"]

[Event "Titled Tuesday Blitz November 01 Late 2022"]
[White "Ozer, Omer Faruk"]
[Black "Gokerkan, Cem Kaan"]
[WhiteFideId "6354564"]
[BlackFideId "6336760"]
[WhiteElo "2260"]
[BlackElo "2365"]
[Result "0-1"]
[Round "05"]
[TimeControl "180+1"]
[Date "2022.11.02"]
[WhiteClock "0:01:06"]
[BlackClock "0:01:30"]

1. d4 {[%clk 0:03:00]}  g6 {[%clk 0:02:59]} 2. c4 {[%clk 0:03:00]}  Bg7 {[%clk 0:02:59]} 3. e4 {[%clk 0:03:00]}  d6 {[%clk 0:02:59]} 4. Nc3 {[%clk 0:02:59]}  Nf6 {[%clk 0:02:59]} 5. Nge2 {[%clk 0:02:58]}  O-O {[%clk 0:02:59]} 6. Ng3 {[%clk 0:02:58]}  c5 {[%clk 0:02:52]} 7. d5 {[%clk 0:02:58]}  h5 {[%clk 0:02:52]} 8. Be2 {[%clk 0:02:56]}  h4 {[%clk 0:02:51]} 9. Nf1 {[%clk 0:02:56]}  h3 {[%clk 0:02:51]} 10. gxh3 {[%clk 0:02:53]}  Bxh3 {[%clk 0:02:47]} 11. Rg1 {[%clk 0:02:53]}  e6 {[%clk 0:02:44]} 12. Qd3 {[%clk 0:02:51]}  Bxf1 {[%clk 0:02:42]} 13. Kxf1 {[%clk 0:02:48]}  exd5 {[%clk 0:02:42]} 14. cxd5 {[%clk 0:02:47]}  Nbd7 {[%clk 0:02:33]} 15. h4 {[%clk 0:02:44]}  Ne5 {[%clk 0:02:29]} 16. Qg3 {[%clk 0:02:40]}  b5 {[%clk 0:01:46]} 17. f4 {[%clk 0:02:39]}  Ned7 {[%clk 0:01:46]} 18. e5 {[%clk 0:02:18]}  dxe5 {[%clk 0:01:47]} 19. fxe5 {[%clk 0:02:18]}  b4 {[%clk 0:01:42]} 20. Bg5 {[%clk 0:01:23]}  bxc3 {[%clk 0:01:36]} 21. bxc3 {[%clk 0:01:06]}  Ne4 {[%clk 0:01:30]} 0-1


[Site "https://www.chess.com"]

[Event "Titled Tuesday Blitz November 01 Late 2022"]
[White "Poliakova, Varvara"]
[Black "Kekic, Armin"]
[WhiteFideId "13518313"]
[BlackFideId "14401274"]
[WhiteElo "1938"]
[BlackElo "2132"]
[Result "0-1"]
[Round "05"]
[TimeControl "180+1"]
[Date "2022.11.02"]
[WhiteClock "0:00:51"]
[BlackClock "0:00:14"]

1. e4 {[%clk 0:03:00]}  c5 {[%clk 0:02:58]} 2. Nc3 {[%clk 0:03:00]}  a6 {[%clk 0:02:56]} 3. g3 {[%clk 0:03:00]}  b5 {[%clk 0:02:55]} 4. Bg2 {[%clk 0:02:59]}  Bb7 {[%clk 0:02:55]} 5. d3 {[%clk 0:02:57]}  e6 {[%clk 0:02:56]} 6. f4 {[%clk 0:02:57]}  Nf6 {[%clk 0:02:56]} 7. Nf3 {[%clk 0:02:57]}  d5 {[%clk 0:02:56]} 8. O-O {[%clk 0:02:52]}  dxe4 {[%clk 0:02:55]} 9. Ng5 {[%clk 0:02:52]}  Be7 {[%clk 0:02:48]} 10. Ngxe4 {[%clk 0:02:50]}  Nxe4 {[%clk 0:02:46]} 11. Nxe4 {[%clk 0:02:51]}  Qc7 {[%clk 0:02:41]} 12. Be3 {[%clk 0:02:50]}  Nd7 {[%clk 0:02:40]} 13. f5 {[%clk 0:02:48]}  e5 {[%clk 0:02:37]} 14. Qg4 {[%clk 0:02:43]}  Bf6 {[%clk 0:02:25]} 15. Nxf6+ {[%clk 0:02:38]}  gxf6 {[%clk 0:02:25]} 16. Bh6 {[%clk 0:02:30]}  Bxg2 {[%clk 0:02:12]} 17. Kxg2 {[%clk 0:02:31]}  Qc6+ {[%clk 0:02:12]} 18. Qe4 {[%clk 0:02:28]}  Qxe4+ {[%clk 0:01:56]} 19. dxe4 {[%clk 0:02:29]}  c4 {[%clk 0:01:56]} 20. Rad1 {[%clk 0:02:26]}  Ke7 {[%clk 0:01:55]} 21. Rd5 {[%clk 0:02:23]}  Nb6 {[%clk 0:01:50]} 22. Rc5 {[%clk 0:02:21]}  Rhc8 {[%clk 0:01:46]} 23. Rxc8 {[%clk 0:02:15]}  Rxc8 {[%clk 0:01:45]} 24. Rd1 {[%clk 0:02:12]}  Na4 {[%clk 0:01:40]} 25. Bc1 {[%clk 0:02:09]}  c3 {[%clk 0:01:14]} 26. b3 {[%clk 0:02:07]}  Nc5 {[%clk 0:01:13]} 27. Kf3 {[%clk 0:02:07]}  b4 {[%clk 0:01:13]} 28. a4 {[%clk 0:02:03]}  a5 {[%clk 0:01:04]} 29. Be3 {[%clk 0:02:00]}  Nd7 {[%clk 0:00:53]} 30. Rd5 {[%clk 0:01:57]}  Ra8 {[%clk 0:00:53]} 31. Kg4 {[%clk 0:01:58]}  Ra6 {[%clk 0:00:47]} 32. Kh5 {[%clk 0:01:58]}  Ra8 {[%clk 0:00:47]} 33. Kh6 {[%clk 0:01:58]}  Rg8 {[%clk 0:00:44]} 34. Kxh7 {[%clk 0:01:53]}  Rg4 {[%clk 0:00:44]} 35. Bc5+ {[%clk 0:01:48]}  Nxc5 {[%clk 0:00:42]} 36. Rxc5 {[%clk 0:01:48]}  Rxe4 {[%clk 0:00:42]} 37. Rxa5 {[%clk 0:01:40]}  Re2 {[%clk 0:00:42]} 38. Ra7+ {[%clk 0:01:40]}  Kf8 {[%clk 0:00:39]} 39. Ra8+ {[%clk 0:01:38]}  Ke7 {[%clk 0:00:39]} 40. Kg7 {[%clk 0:01:39]}  Rxc2 {[%clk 0:00:21]} 41. Ra7+ {[%clk 0:01:38]}  Kd6 {[%clk 0:00:20]} 42. Kxf6 {[%clk 0:01:38]}  e4 {[%clk 0:00:20]} 43. Ra6+ {[%clk 0:01:28]}  Kd5 {[%clk 0:00:20]} 44. Kxf7 {[%clk 0:01:22]}  e3 {[%clk 0:00:20]} 45. Re6 {[%clk 0:01:22]}  e2 {[%clk 0:00:20]} 46. Ke7 {[%clk 0:01:14]}  Rd2 {[%clk 0:00:18]} 47. f6 {[%clk 0:01:14]}  c2 {[%clk 0:00:18]} 48. f7 {[%clk 0:01:15]}  c1=Q {[%clk 0:00:18]} 49. Rd6+ {[%clk 0:01:04]}  Ke4 {[%clk 0:00:18]} 50. Re6+ {[%clk 0:01:03]}  Kd3 {[%clk 0:00:16]} 51. f8=Q {[%clk 0:01:03]}  Qc7+ {[%clk 0:00:15]} 52. Kf6 {[%clk 0:01:03]}  e1=Q {[%clk 0:00:15]} 53. Rxe1 {[%clk 0:00:51]}  Rf2+ {[%clk 0:00:14]} 0-1


[Site "https://www.chess.com"]

[Event "Titled Tuesday Blitz November 01 Late 2022"]
[White "Przybylski, Wojciech"]
[Black "Baglan, Esat"]
[WhiteFideId "1117599"]
[BlackFideId "6309216"]
[WhiteElo "2221"]
[BlackElo "2231"]
[Result "0-1"]
[Round "05"]
[TimeControl "180+1"]
[Date "2022.11.02"]
[WhiteClock "0:00:24"]
[BlackClock "0:01:07"]

1. e4 {[%clk 0:03:00]}  c5 {[%clk 0:03:00]} 2. Nf3 {[%clk 0:02:53]}  Nc6 {[%clk 0:02:59]} 3. d4 {[%clk 0:02:51]}  cxd4 {[%clk 0:03:00]} 4. Nxd4 {[%clk 0:02:51]}  g6 {[%clk 0:03:00]} 5. h4 {[%clk 0:02:48]}  h5 {[%clk 0:02:55]} 6. Nc3 {[%clk 0:02:45]}  Bg7 {[%clk 0:02:54]} 7. Nf3 {[%clk 0:02:45]}  d6 {[%clk 0:02:53]} 8. Bc4 {[%clk 0:02:43]}  Nf6 {[%clk 0:02:53]} 9. Ng5 {[%clk 0:02:40]}  O-O {[%clk 0:02:53]} 10. f3 {[%clk 0:02:38]}  Na5 {[%clk 0:02:48]} 11. Be2 {[%clk 0:02:26]}  Bd7 {[%clk 0:02:46]} 12. Be3 {[%clk 0:02:24]}  Rc8 {[%clk 0:02:46]} 13. Bd4 {[%clk 0:02:18]}  Nc4 {[%clk 0:02:45]} 14. Nd5 {[%clk 0:02:07]}  Nxd5 {[%clk 0:02:38]} 15. exd5 {[%clk 0:01:58]}  Nxb2 {[%clk 0:02:35]} 16. Qd2 {[%clk 0:01:43]}  Nc4 {[%clk 0:02:31]} 17. Qf4 {[%clk 0:01:42]}  Qa5+ {[%clk 0:02:24]} 18. Kf2 {[%clk 0:01:32]}  Bxd4+ {[%clk 0:02:14]} 19. Qxd4 {[%clk 0:01:32]}  Qc5 {[%clk 0:02:14]} 20. Rhd1 {[%clk 0:01:21]}  Qxd4+ {[%clk 0:02:13]} 21. Rxd4 {[%clk 0:01:20]}  Na3 {[%clk 0:02:14]} 22. Re4 {[%clk 0:01:04]}  Rfe8 {[%clk 0:02:03]} 23. Bd3 {[%clk 0:00:59]}  Bf5 {[%clk 0:01:57]} 24. Ra4 {[%clk 0:00:49]}  Bxd3 {[%clk 0:01:54]} 25. cxd3 {[%clk 0:00:40]}  Rc2+ {[%clk 0:01:52]} 26. Kg3 {[%clk 0:00:39]}  Nb5 {[%clk 0:01:52]} 27. Rb4 {[%clk 0:00:35]}  Nc3 {[%clk 0:01:43]} 28. Rxb7 {[%clk 0:00:34]}  Nxd5 {[%clk 0:01:43]} 29. Rxa7 {[%clk 0:00:34]}  Ne3 {[%clk 0:01:42]} 30. Rg1 {[%clk 0:00:33]}  Kf8 {[%clk 0:01:24]} 31. a4 {[%clk 0:00:33]}  Rb8 {[%clk 0:01:23]} 32. Kf4 {[%clk 0:00:30]}  Nxg2+ {[%clk 0:01:19]} 33. Ke4 {[%clk 0:00:30]}  f5+ {[%clk 0:01:09]} 34. Kd5 {[%clk 0:00:29]}  Nf4+ {[%clk 0:01:08]} 35. Kd4 {[%clk 0:00:28]}  Rb4+ {[%clk 0:01:06]} 36. Ke3 {[%clk 0:00:24]}  Re2# {[%clk 0:01:07]} 0-1


[Site "https://www.chess.com"]

[Event "Titled Tuesday Blitz November 01 Late 2022"]
[White "Qashashvili, Alexandre"]
[Black "Curtis, John"]
[WhiteFideId "13600842"]
[BlackFideId "3200256"]
[WhiteElo "2405"]
[BlackElo "2203"]
[Result "1-0"]
[Round "05"]
[TimeControl "180+1"]
[Date "2022.11.02"]
[WhiteClock "0:00:14"]
[BlackClock "0:00:13"]

1. e3 {[%clk 0:02:27]}  e5 {[%clk 0:02:57]} 2. d4 {[%clk 0:02:24]}  exd4 {[%clk 0:02:57]} 3. exd4 {[%clk 0:02:25]}  d5 {[%clk 0:02:58]} 4. Nf3 {[%clk 0:02:25]}  Bd6 {[%clk 0:02:58]} 5. Be3 {[%clk 0:02:25]}  Ne7 {[%clk 0:02:57]} 6. Bd3 {[%clk 0:02:25]}  Bf5 {[%clk 0:02:56]} 7. h3 {[%clk 0:02:25]}  c6 {[%clk 0:02:56]} 8. O-O {[%clk 0:02:24]}  Bxd3 {[%clk 0:02:55]} 9. Qxd3 {[%clk 0:02:23]}  Na6 {[%clk 0:02:55]} 10. Re1 {[%clk 0:02:18]}  f6 {[%clk 0:02:45]} 11. c3 {[%clk 0:02:17]}  Nc7 {[%clk 0:02:43]} 12. Nbd2 {[%clk 0:02:17]}  O-O {[%clk 0:02:42]} 13. Nf1 {[%clk 0:02:16]}  Qd7 {[%clk 0:02:42]} 14. Nh4 {[%clk 0:02:14]}  Rae8 {[%clk 0:02:38]} 15. Re2 {[%clk 0:02:07]}  a6 {[%clk 0:02:38]} 16. Rae1 {[%clk 0:02:06]}  Nc8 {[%clk 0:02:37]} 17. Nh2 {[%clk 0:02:03]}  Bxh2+ {[%clk 0:02:34]} 18. Kxh2 {[%clk 0:02:02]}  Nd6 {[%clk 0:02:34]} 19. Bf4 {[%clk 0:01:58]}  Rxe2 {[%clk 0:02:34]} 20. Qxe2 {[%clk 0:01:56]}  Re8 {[%clk 0:02:34]} 21. Qd1 {[%clk 0:01:55]}  Rxe1 {[%clk 0:02:33]} 22. Qxe1 {[%clk 0:01:54]}  Ne6 {[%clk 0:02:33]} 23. Bxd6 {[%clk 0:01:54]}  Qxd6+ {[%clk 0:02:33]} 24. g3 {[%clk 0:01:52]}  g6 {[%clk 0:02:29]} 25. Qe3 {[%clk 0:01:46]}  Ng5 {[%clk 0:02:14]} 26. Qe8+ {[%clk 0:01:42]}  Qf8 {[%clk 0:02:13]} 27. Qd7 {[%clk 0:01:42]}  Qf7 {[%clk 0:02:09]} 28. Qc8+ {[%clk 0:01:39]}  Kg7 {[%clk 0:02:09]} 29. Kg2 {[%clk 0:01:35]}  Qe7 {[%clk 0:02:08]} 30. Qg4 {[%clk 0:01:28]}  h5 {[%clk 0:01:51]} 31. Qf4 {[%clk 0:01:16]}  Qe2 {[%clk 0:01:36]} 32. Qc7+ {[%clk 0:01:12]}  Kh6 {[%clk 0:01:36]} 33. Qd8 {[%clk 0:01:00]}  Qe4+ {[%clk 0:01:27]} 34. Kh2 {[%clk 0:00:59]}  Kg7 {[%clk 0:01:04]} 35. Qd7+ {[%clk 0:00:54]}  Kh6 {[%clk 0:00:53]} 36. Qd8 {[%clk 0:00:40]}  Kg7 {[%clk 0:00:51]} 37. Qc7+ {[%clk 0:00:37]}  Kh6 {[%clk 0:00:51]} 38. Qc8 {[%clk 0:00:38]}  Qe6 {[%clk 0:00:42]} 39. Qh8+ {[%clk 0:00:30]}  Nh7 {[%clk 0:00:42]} 40. Kg1 {[%clk 0:00:19]}  Qe1+ {[%clk 0:00:34]} 41. Kg2 {[%clk 0:00:19]}  Qe4+ {[%clk 0:00:33]} 42. Nf3 {[%clk 0:00:19]}  g5 {[%clk 0:00:31]} 43. a4 {[%clk 0:00:14]}  g4 {[%clk 0:00:30]} 44. hxg4 {[%clk 0:00:12]}  hxg4 {[%clk 0:00:29]} 45. Kg1 {[%clk 0:00:12]}  gxf3 {[%clk 0:00:27]} 46. Qd8 {[%clk 0:00:11]}  Qe1+ {[%clk 0:00:27]} 47. Kh2 {[%clk 0:00:11]}  Qxf2+ {[%clk 0:00:27]} 48. Kh3 {[%clk 0:00:12]}  Qg2+ {[%clk 0:00:27]} 49. Kg4 {[%clk 0:00:12]}  Qe2 {[%clk 0:00:19]} 50. Qe7 {[%clk 0:00:09]}  f2+ {[%clk 0:00:19]} 51. Qxe2 {[%clk 0:00:10]}  Kg6 {[%clk 0:00:18]} 52. Qxf2 {[%clk 0:00:10]}  Ng5 {[%clk 0:00:14]} 53. Qf5+ {[%clk 0:00:10]}  Kg7 {[%clk 0:00:13]} 54. Kh5 {[%clk 0:00:11]}  Nf7 {[%clk 0:00:13]} 55. Qg6+ {[%clk 0:00:11]}  Kf8 {[%clk 0:00:14]} 56. Qxf6 {[%clk 0:00:11]}  Ke8 {[%clk 0:00:14]} 57. Kg6 {[%clk 0:00:12]}  Kd7 {[%clk 0:00:12]} 58. Qxf7+ {[%clk 0:00:12]}  Kc8 {[%clk 0:00:13]} 59. Qe7 {[%clk 0:00:12]}  Kb8 {[%clk 0:00:13]} 60. Kf6 {[%clk 0:00:12]}  Ka7 {[%clk 0:00:12]} 61. Ke6 {[%clk 0:00:13]}  Kb6 {[%clk 0:00:13]} 62. Kd6 {[%clk 0:00:14]} 1-0


[Site "https://www.chess.com"]

[Event "Titled Tuesday Blitz November 01 Late 2022"]
[White "Ramirez, Alejandro"]
[Black "Castellanos Gomez, Alejandro"]
[WhiteFideId "6500617"]
[BlackFideId "22284141"]
[WhiteElo "2694"]
[BlackElo "2168"]
[Result "1-0"]
[Round "05"]
[TimeControl "180+1"]
[Date "2022.11.02"]
[WhiteClock "0:00:11"]
[BlackClock "0:00:01"]

1. Nf3 {[%clk 0:03:00]}  Nf6 {[%clk 0:02:42]} 2. c4 {[%clk 0:02:55]}  e6 {[%clk 0:02:42]} 3. g3 {[%clk 0:02:55]}  d5 {[%clk 0:02:42]} 4. b3 {[%clk 0:02:56]}  d4 {[%clk 0:02:39]} 5. e3 {[%clk 0:02:52]}  c5 {[%clk 0:02:39]} 6. Bg2 {[%clk 0:02:52]}  Nc6 {[%clk 0:02:39]} 7. exd4 {[%clk 0:02:52]}  cxd4 {[%clk 0:02:38]} 8. O-O {[%clk 0:02:53]}  Be7 {[%clk 0:02:38]} 9. d3 {[%clk 0:02:53]}  O-O {[%clk 0:02:38]} 10. Re1 {[%clk 0:02:53]}  Nd7 {[%clk 0:02:34]} 11. Na3 {[%clk 0:02:39]}  e5 {[%clk 0:02:30]} 12. Nc2 {[%clk 0:02:39]}  a5 {[%clk 0:02:23]} 13. a3 {[%clk 0:02:37]}  f6 {[%clk 0:02:20]} 14. Rb1 {[%clk 0:02:36]}  Nc5 {[%clk 0:02:18]} 15. b4 {[%clk 0:02:36]}  axb4 {[%clk 0:02:17]} 16. axb4 {[%clk 0:02:36]}  Na4 {[%clk 0:02:17]} 17. Bd2 {[%clk 0:02:37]}  Bf5 {[%clk 0:02:14]} 18. b5 {[%clk 0:02:31]}  Nb8 {[%clk 0:02:03]} 19. Nb4 {[%clk 0:02:24]}  Nc5 {[%clk 0:01:51]} 20. Qe2 {[%clk 0:02:14]}  Ra3 {[%clk 0:01:50]} 21. Bc1 {[%clk 0:01:55]}  Rxd3 {[%clk 0:01:49]} 22. Nh4 {[%clk 0:01:49]}  Re3 {[%clk 0:01:15]} 23. Bxe3 {[%clk 0:01:17]}  Bxb1 {[%clk 0:01:15]} 24. Rxb1 {[%clk 0:01:17]}  dxe3 {[%clk 0:01:15]} 25. Bd5+ {[%clk 0:01:14]}  Kh8 {[%clk 0:01:15]} 26. fxe3 {[%clk 0:00:53]}  f5 {[%clk 0:01:12]} 27. Nf3 {[%clk 0:00:53]}  Nbd7 {[%clk 0:01:10]} 28. Rd1 {[%clk 0:00:48]}  Qe8 {[%clk 0:01:09]} 29. e4 {[%clk 0:00:43]}  f4 {[%clk 0:01:09]} 30. g4 {[%clk 0:00:42]}  Qg6 {[%clk 0:01:05]} 31. h3 {[%clk 0:00:42]}  Na4 {[%clk 0:00:59]} 32. Qc2 {[%clk 0:00:37]}  Ra8 {[%clk 0:00:36]} 33. Nd3 {[%clk 0:00:35]}  Bd6 {[%clk 0:00:21]} 34. Bxb7 {[%clk 0:00:33]}  Rb8 {[%clk 0:00:14]} 35. Bc6 {[%clk 0:00:28]}  Ndc5 {[%clk 0:00:12]} 36. Nxc5 {[%clk 0:00:25]}  Nxc5 {[%clk 0:00:09]} 37. Rd5 {[%clk 0:00:25]}  Qf6 {[%clk 0:00:07]} 38. Qd1 {[%clk 0:00:22]}  Be7 {[%clk 0:00:07]} 39. Rxe5 {[%clk 0:00:20]}  h6 {[%clk 0:00:06]} 40. Rd5 {[%clk 0:00:16]}  Ne6 {[%clk 0:00:06]} 41. e5 {[%clk 0:00:16]}  Qf7 {[%clk 0:00:04]} 42. Rd7 {[%clk 0:00:16]}  Nc5 {[%clk 0:00:04]} 43. Rd5 {[%clk 0:00:14]}  Qg6 {[%clk 0:00:03]} 44. Kg2 {[%clk 0:00:12]}  Ne4 {[%clk 0:00:03]} 45. Qd3 {[%clk 0:00:11]}  Rc8 {[%clk 0:00:01]} 46. Rd4 {[%clk 0:00:11]}  Nc5 {[%clk 0:00:01]} 47. Qxg6 {[%clk 0:00:11]} 1-0


[Site "https://www.chess.com"]

[Event "Titled Tuesday Blitz November 01 Late 2022"]
[White "Rios Escobar, Adan"]
[Black "Hjartarson, Johann"]
[WhiteFideId "3403645"]
[BlackFideId "2300044"]
[WhiteElo "2356"]
[BlackElo "2458"]
[Result "0-1"]
[Round "05"]
[TimeControl "180+1"]
[Date "2022.11.02"]
[WhiteClock "0:00:01"]
[BlackClock "0:00:17"]

1. d4 {[%clk 0:03:00]}  Nf6 {[%clk 0:02:59]} 2. g3 {[%clk 0:02:57]}  g6 {[%clk 0:02:58]} 3. Bg2 {[%clk 0:02:56]}  Bg7 {[%clk 0:02:58]} 4. e4 {[%clk 0:02:56]}  d6 {[%clk 0:02:57]} 5. Ne2 {[%clk 0:02:57]}  O-O {[%clk 0:02:56]} 6. O-O {[%clk 0:02:57]}  Nbd7 {[%clk 0:02:55]} 7. Nbc3 {[%clk 0:02:56]}  c5 {[%clk 0:02:54]} 8. h3 {[%clk 0:02:44]}  a6 {[%clk 0:02:51]} 9. a4 {[%clk 0:02:44]}  cxd4 {[%clk 0:02:50]} 10. Nxd4 {[%clk 0:02:43]}  Qc7 {[%clk 0:02:47]} 11. Be3 {[%clk 0:02:37]}  Rb8 {[%clk 0:02:46]} 12. a5 {[%clk 0:02:37]}  b5 {[%clk 0:02:39]} 13. axb6 {[%clk 0:02:37]}  Nxb6 {[%clk 0:02:38]} 14. e5 {[%clk 0:02:25]}  dxe5 {[%clk 0:02:31]} 15. Nc6 {[%clk 0:02:25]}  Rb7 {[%clk 0:02:23]} 16. Bc5 {[%clk 0:02:13]}  Re8 {[%clk 0:02:22]} 17. Rxa6 {[%clk 0:01:35]}  Nc4 {[%clk 0:01:54]} 18. b4 {[%clk 0:01:32]}  e4 {[%clk 0:01:30]} 19. Qe2 {[%clk 0:00:50]}  Nd6 {[%clk 0:01:02]} 20. Nxe7+ {[%clk 0:00:28]}  Qxe7 {[%clk 0:01:00]} 21. Bxd6 {[%clk 0:00:26]}  Qe6 {[%clk 0:00:42]} 22. Rd1 {[%clk 0:00:23]}  Rxb4 {[%clk 0:00:40]} 23. Bxb4 {[%clk 0:00:21]}  Bxa6 {[%clk 0:00:39]} 24. Qe3 {[%clk 0:00:16]}  Qc4 {[%clk 0:00:37]} 25. Rd4 {[%clk 0:00:14]}  Ng4 {[%clk 0:00:32]} 26. Rxc4 {[%clk 0:00:07]}  Nxe3 {[%clk 0:00:32]} 27. Rc6 {[%clk 0:00:04]}  Nxc2 {[%clk 0:00:32]} 28. Rxa6 {[%clk 0:00:02]}  Nxb4 {[%clk 0:00:31]} 29. Ra3 {[%clk 0:00:03]}  f5 {[%clk 0:00:28]} 30. Ne2 {[%clk 0:00:03]}  Nd3 {[%clk 0:00:27]} 31. g4 {[%clk 0:00:02]}  Rb8 {[%clk 0:00:26]} 32. gxf5 {[%clk 0:00:01]}  gxf5 {[%clk 0:00:25]} 33. Ng3 {[%clk 0:00:01]}  Rb1+ {[%clk 0:00:19]} 34. Bf1 {[%clk 0:00:02]}  Bd4 {[%clk 0:00:19]} 35. Ra2 {[%clk 0:00:01]}  Nxf2 {[%clk 0:00:17]} 0-1


[Site "https://www.chess.com"]

[Event "Titled Tuesday Blitz November 01 Late 2022"]
[White "Roman, Rodrigo"]
[Black "Shapiro, Daniel"]
[WhiteFideId "3701220"]
[BlackFideId "2001780"]
[WhiteElo "2001"]
[BlackElo "2285"]
[Result "0-1"]
[Round "05"]
[TimeControl "180+1"]
[Date "2022.11.02"]
[WhiteClock "0:00:03"]
[BlackClock "0:00:05"]

1. e4 {[%clk 0:02:54]}  e5 {[%clk 0:02:58]} 2. Nf3 {[%clk 0:02:54]}  Nc6 {[%clk 0:02:58]} 3. Bb5 {[%clk 0:02:55]}  a6 {[%clk 0:02:58]} 4. Bxc6 {[%clk 0:02:55]}  dxc6 {[%clk 0:02:57]} 5. O-O {[%clk 0:02:56]}  Ne7 {[%clk 0:02:57]} 6. Nxe5 {[%clk 0:02:56]}  Qd4 {[%clk 0:02:56]} 7. Nf3 {[%clk 0:02:54]}  Qxe4 {[%clk 0:02:55]} 8. Re1 {[%clk 0:02:55]}  Qg6 {[%clk 0:02:51]} 9. d4 {[%clk 0:02:50]}  f6 {[%clk 0:02:30]} 10. Nc3 {[%clk 0:02:35]}  Bg4 {[%clk 0:02:10]} 11. Nh4 {[%clk 0:01:08]}  Qh5 {[%clk 0:01:48]} 12. f3 {[%clk 0:00:50]}  Bd7 {[%clk 0:01:43]} 13. g3 {[%clk 0:00:45]}  O-O-O {[%clk 0:01:39]} 14. Ng2 {[%clk 0:00:42]}  g5 {[%clk 0:01:03]} 15. Be3 {[%clk 0:00:17]}  c5 {[%clk 0:00:43]} 16. d5 {[%clk 0:00:14]}  Nf5 {[%clk 0:00:37]} 17. Bf2 {[%clk 0:00:14]}  Qf7 {[%clk 0:00:30]} 18. f4 {[%clk 0:00:07]}  b6 {[%clk 0:00:21]} 19. a4 {[%clk 0:00:05]}  Nd4 {[%clk 0:00:20]} 20. a5 {[%clk 0:00:06]}  g4 {[%clk 0:00:16]} 21. Bxd4 {[%clk 0:00:04]}  cxd4 {[%clk 0:00:16]} 22. Ne2 {[%clk 0:00:05]}  Qxd5 {[%clk 0:00:10]} 23. axb6 {[%clk 0:00:05]}  cxb6 {[%clk 0:00:09]} 24. Rxa6 {[%clk 0:00:05]}  Bc5 {[%clk 0:00:06]} 25. Qd3 {[%clk 0:00:03]}  Bc6 {[%clk 0:00:05]} 0-1


[Site "https://www.chess.com"]